bitfinex/quotes_ETHUSD_20251218
["timestamp","ask_amount","ask_price","bid_price","bid_amount"]
[1766018440215,0.0841,2843.2,2842.9,0.002]
[1766018442898,0.001,2843.2,2842.9,0.002]
[1766018443102,0.0841,2843.2,2842.9,0.002]
[1766018444214,0.001,2843.2,2842.9,0.002]
[1766018444598,0.0841,2843.2,2842.9,0.002]
[1766018446117,0.0841,2843.2,2842.3,0.27814]
[1766018446309,0.0841,2843.2,2842.4,2.8062]
[1766018448808,0.0841,2843.2,2842.2,8.89361637]
[1766018449008,0.0841,2843.2,2842.3,2.4387]
[1766018449213,0.0841,2843.2,2842.3,2.8062]
[1766018450212,0.0841,2843.2,2842.3,2.4387]
[1766018450526,0.0831,2843.1,2842.3,3.29131164]
[1766018450824,0.0831,2843.1,2842.3,3.65881164]
[1766018451130,0.0831,2843.1,2842.4,2.8062]
[1766018453727,0.0831,2843.1,2842.5,2.8062]
[1766018456931,0.0831,2843.1,2842.5,2.4387]
[1766018457132,0.0831,2843.1,2842.5,2.8062]
[1766018460350,0.0831,2843.1,2842.3,2.8082]
[1766018460726,0.46538023,2843.2,2842.3,2.8082]
[1766018460927,0.54848023,2843.2,2842.4,0.3675]
[1766018461126,0.54848023,2843.2,2842.5,2.4387]
[1766018461327,0.54848023,2843.2,2842.6,2.8062]
[1766018461527,0.0841,2843.2,2842.6,2.8062]
[1766018461740,0.001,2843.2,2842.7,0.3675]
[1766018462043,0.0831,2843.1,2842.5,2.8082]
[1766018462943,0.0831,2843.1,2842.5,0.002]
[1766018465945,0.001,2843.2,2841.7,0.002]
[1766018465946,6.54243556,2843.0,2841.7,0.002]
[1766018466126,0.0811,2842.8,2841.7,2.4407]
[1766018466726,0.0811,2842.8,2841.7,0.002]
[1766018467321,0.0811,2842.7,2841.7,2.4407]
[1766018467649,0.0811,2842.7,2841.7,0.002]
[1766018469119,0.0811,2842.5,2841.7,0.002]
[1766018469454,0.0811,2842.5,2842.3,0.002]
[1766018469630,0.0811,2842.5,2841.7,0.002]
[1766018470757,0.0811,2842.2,2841.5,0.002]
[1766018471356,1.78488141,2841.4,2840.3,0.002]
[1766018471654,1.78488141,2841.4,2839.5,2.2789]
[1766018471655,0.0811,2840.3,2839.5,2.2789]
[1766018471950,0.54548023,2840.1,2839.4,0.3376]
[1766018472252,2.56595414,2840.0,2839.4,2.2789]
[1766018472551,2.56595414,2840.0,2839.3,0.3376]
[1766018472751,4.07939944,2840.0,2839.3,0.59925]
[1766018472927,4.07939944,2840.0,2839.3,2.87815]
[1766018473121,1.20959139,2840.0,2839.3,2.87815]
[1766018473328,0.0811,2840.0,2839.4,2.2789]
[1766018473641,0.0811,2840.0,2839.4,2.6165]
[1766018473833,0.0811,2840.0,2839.4,2.904315]
[1766018477247,0.0811,2840.0,2839.4,2.906315]
[1766018478361,0.0811,2840.0,2839.4,2.6185]
[1766018480157,0.0811,2840.3,2839.5,2.6165]
[1766018481773,0.0811,2840.2,2839.4,0.002]
[1766018482061,0.0811,2840.1,2839.4,0.002]
[1766018482257,0.58446343,2840.1,2839.4,0.002]
[1766018482464,0.0811,2840.0,2839.4,0.002]
[1766018483765,0.0811,2840.0,2839.0,2.6165]
[1766018483968,0.0811,2839.9,2839.0,0.26165]
[1766018484132,0.0811,2839.9,2838.9,2.6165]
[1766018484337,0.0811,2839.9,2839.5,0.002]
[1766018484647,0.0811,2839.9,2839.0,2.2789]
[1766018484959,0.67532499,2840.0,2839.4,0.3376]
[1766018485162,0.67532499,2840.0,2838.7,0.46438023]
[1766018485465,0.0811,2839.9,2839.1,2.6165]
[1766018486639,0.0811,2839.9,2839.1,2.2789]
[1766018486840,0.0811,2839.9,2839.2,2.6165]
[1766018487765,3.98564316,2839.9,2838.8,0.99280667]
[1766018487969,0.0811,2839.8,2838.8,0.3376]
[1766018488465,0.0811,2839.7,2838.7,2.2789]
[1766018489067,0.0811,2839.6,2838.6,0.3376]
[1766018490168,0.0811,2839.6,2838.6,2.6165]
[1766018490549,0.58446343,2839.6,2838.6,2.2789]
[1766018490853,0.0811,2839.5,2838.6,2.2789]
[1766018491238,0.0811,2839.5,2838.5,0.6]
[1766018492065,0.0811,2839.4,2838.8,0.002]
[1766018492961,0.0811,2839.4,2838.5,0.6]
[1766018496375,0.0811,2839.1,2838.4,1.2]
[1766018497170,0.0811,2839.0,2838.3,0.002]
[1766018497376,0.0811,2838.9,2838.3,0.002]
[1766018499246,0.0811,2838.9,2838.5,0.002]
[1766018502267,0.58446343,2838.9,2838.5,0.002]
[1766018502472,0.0811,2838.8,2838.5,0.002]
[1766018503755,0.0811,2838.8,2838.2,0.002]
[1766018503946,0.58446343,2838.9,2838.2,0.002]
[1766018504151,0.0811,2838.8,2838.2,2.7566]
[1766018505157,0.0811,2838.8,2838.2,2.4084]
[1766018506186,0.0811,2838.8,2838.5,0.002]
[1766018509065,0.0811,2838.8,2837.9,2.7546]
[1766018509066,0.0791,2838.7,2837.9,2.7546]
[1766018509284,0.0791,2838.7,2837.9,2.4064]
[1766018509285,0.0791,2838.6,2837.9,2.4064]
[1766018509581,0.0791,2838.5,2837.9,2.4064]
[1766018509984,0.0791,2838.5,2837.7,0.3482]
[1766018510152,0.0791,2838.5,2837.6,2.4084]
[1766018510358,0.0791,2838.5,2837.6,0.002]
[1766018510605,0.0791,2838.4,2837.6,0.002]
[1766018511585,0.0791,2838.3,2837.3,0.002]
[1766018512785,0.0791,2838.3,2837.5,0.002]
[1766018512964,0.0791,2838.3,2837.5,2.7566]
[1766018513479,0.0791,2838.3,2837.5,0.002]
[1766018514986,0.0791,2838.3,2837.5,2.4084]
[1766018515485,0.0791,2838.3,2837.6,0.3482]
[1766018515657,0.0791,2838.3,2837.7,2.4064]
[1766018515857,0.0791,2838.3,2837.7,2.7546]
[1766018516257,0.0791,2838.3,2837.7,2.4064]
[1766018516480,0.0791,2838.3,2837.6,0.3482]
[1766018517588,0.0791,2838.3,2837.5,2.4084]
[1766018517762,0.0791,2838.3,2837.5,0.002]
[1766018518591,0.0791,2838.3,2837.5,2.4084]
[1766018520581,0.0791,2838.2,2837.5,0.002]
[1766018521859,0.0791,2838.2,2837.6,2.4064]
[1766018522056,0.0791,2838.2,2837.6,2.7546]
[1766018522260,0.0791,2838.2,2837.5,0.002]
[1766018523262,0.0791,2838.2,2837.3,0.002]
[1766018523790,0.0771,2838.0,2837.3,2.4084]
[1766018524196,0.0771,2838.0,2837.3,2.7566]
[1766018524893,0.0771,2838.0,2837.3,2.4084]
[1766018525191,0.0771,2838.3,2837.5,2.7546]
[1766018528868,0.0771,2838.3,2837.5,0.002]
[1766018534112,0.0771,2838.3,2837.5,2.2534]
[1766018534796,0.0771,2838.3,2837.5,2.6065]
[1766018535832,0.0771,2838.3,2837.5,2.2534]
[1766018536117,0.0771,2838.3,2837.6,2.6045]
[1766018541028,0.001,2838.4,2837.6,2.2514]
[1766018541230,0.001,2838.4,2838.0,2.2514]
[1766018541393,0.001,2838.4,2838.1,2.2514]
[1766018541727,0.001,2838.4,2838.2,2.6045]
[1766018542919,0.001,2838.4,2838.2,2.2514]
[1766018543126,0.001,2838.4,2837.6,6.11003088]
[1766018543127,0.61662829,2838.8,2838.3,2.6045]
[1766018543320,0.53952829,2838.8,2838.3,2.2514]
[1766018543627,0.0771,2838.7,2838.3,2.2514]
[1766018543803,0.0771,2838.7,2838.1,2.6045]
[1766018544607,0.0771,2838.9,2838.3,2.6045]
[1766018544813,0.0771,2839.1,2838.4,0.3531]
[1766018545014,0.0771,2839.1,2838.4,2.6045]
[1766018545422,0.0771,2839.1,2838.4,2.2514]
[1766018545598,0.0771,2839.1,2838.6,2.6045]
[1766018545802,0.0771,2839.3,2838.7,2.2514]
[1766018546010,0.0771,2839.3,2838.9,2.6045]
[1766018546246,0.001,2839.4,2838.9,2.2514]
[1766018546404,0.001,2839.4,2838.7,2.6045]
[1766018546916,0.001,2839.4,2838.8,2.6045]
[1766018547116,0.0781,2839.4,2838.8,2.6045]
[1766018550337,0.001,2839.4,2838.8,2.6045]
[1766018550542,0.001,2839.4,2838.9,0.3531]
[1766018550742,0.0781,2839.4,2838.3,2.2514]
[1766018550940,0.0781,2839.4,2838.7,2.2514]
[1766018551149,0.0781,2839.4,2838.8,0.3531]
[1766018551349,0.0781,2839.4,2838.8,2.6045]
[1766018557645,0.001,2839.4,2839.0,2.2514]
[1766018557849,0.001,2839.4,2839.2,2.6045]
[1766018558565,0.001,2839.6,2839.4,2.2514]
[1766018558732,0.0781,2840.1,2839.5,2.6045]
[1766018558733,4.14607729,2840.0,2839.5,2.6045]
[1766018558918,0.46438023,2839.9,2839.5,2.6045]
[1766018559118,1.13378962,2840.0,2839.6,0.3531]
[1766018559345,1.82304175,2840.0,2839.6,2.6045]
[1766018560335,1.82304175,2840.0,2839.6,2.2514]
[1766018560538,0.0771,2839.9,2839.2,2.2514]
[1766018561279,0.0771,2839.9,2839.2,2.6119]
[1766018561575,1.71421195,2840.0,2839.4,2.4545]
[1766018561739,1.71421195,2840.0,2839.4,2.815]
[1766018562141,1.71521195,2840.0,2839.4,2.815]
[1766018562474,1.79231195,2840.0,2839.1,0.3605]
[1766018562654,1.10305982,2840.0,2839.4,2.4545]
[1766018563351,0.0781,2840.0,2839.4,2.815]
[1766018564944,0.0781,2840.0,2839.0,2.815]
[1766018565144,0.0781,2840.0,2839.2,2.4545]
[1766018565370,0.0781,2840.0,2839.4,2.4545]
[1766018565956,0.001,2840.0,2839.5,0.3605]
[1766018566157,0.0781,2840.0,2839.5,2.4545]
[1766018568288,0.0781,2840.0,2839.5,2.815]
[1766018568863,0.0781,2840.0,2839.0,2.815]
[1766018569063,0.0781,2840.0,2839.3,2.4545]
[1766018569475,0.0781,2840.0,2839.4,2.815]
[1766018570166,0.46538023,2840.0,2839.2,2.815]
[1766018570465,0.0771,2839.9,2839.3,2.815]
[1766018571268,0.001,2840.0,2839.4,0.3605]
[1766018571466,0.001,2840.0,2839.6,0.3605]
[1766018571670,0.001,2840.0,2839.7,2.815]
[1766018571893,0.0781,2840.0,2839.2,2.815]
[1766018572078,0.0781,2840.0,2839.3,0.73116966]
[1766018572276,0.46538023,2840.0,2839.5,0.3605]
[1766018572468,0.0771,2839.9,2839.2,2.815]
[1766018572988,0.0771,2839.9,2839.2,2.4545]
[1766018573166,0.0771,2839.9,2839.3,2.815]
[1766018573690,0.0771,2839.9,2839.0,8.55646592]
[1766018573884,0.0771,2839.9,2839.1,3.34619659]
[1766018574085,0.0771,2839.9,2839.1,3.70669659]
[1766018574467,0.0771,2839.9,2839.1,1.25219659]
[1766018574791,0.0771,2839.9,2839.1,3.70669659]
[1766018575175,0.0771,2839.9,2839.2,2.4545]
[1766018575376,0.0771,2839.9,2839.2,2.91967525]
[1766018576998,0.0781,2839.9,2839.2,2.91967525]
[1766018578987,0.0781,2839.9,2839.2,0.46517525]
[1766018580098,0.0771,2839.5,2838.4,0.002]
[1766018580899,0.0771,2839.5,2838.4,2.817]
[1766018581112,0.0771,2839.5,2838.5,2.815]
[1766018581414,0.0771,2839.3,2838.4,0.002]
[1766018581600,0.0771,2839.3,2837.2,0.002]
[1766018581601,1.79101514,2839.3,2838.0,2.4545]
[1766018581811,0.0771,2839.1,2838.1,0.85564659]
[1766018582112,0.0771,2838.9,2837.8,2.4545]
[1766018582312,0.0771,2838.9,2837.5,6.10396592]
[1766018582313,1.70890434,2838.9,2837.5,0.002]
[1766018582473,0.0771,2838.8,2837.7,2.815]
[1766018582676,0.0771,2838.8,2837.8,2.815]
[1766018583473,0.0771,2838.8,2837.9,0.3605]
[1766018583688,0.0771,2838.8,2838.0,2.4545]
[1766018584877,0.0771,2838.8,2838.2,2.815]
[1766018585293,0.0771,2838.8,2838.2,2.4545]
[1766018586811,0.0771,2838.8,2837.9,2.4545]
[1766018587271,0.0771,2838.8,2837.8,0.3625]
[1766018587470,0.0771,2838.8,2837.8,0.73338966]
[1766018588414,0.0771,2838.8,2837.8,3.18788966]
[1766018589280,0.0771,2838.8,2837.9,2.4545]
[1766018589714,0.0771,2838.8,2837.9,2.815]
[1766018594496,0.0771,2838.8,2837.9,2.817]
[1766018594815,0.0771,2838.7,2837.9,2.817]
[1766018599616,0.0771,2838.7,2838.1,2.3231]
[1766018604031,0.001,2838.8,2838.1,2.3231]
[1766018604238,0.001,2838.8,2838.2,2.6812]
[1766018604418,0.0781,2838.8,2838.2,2.6812]
[1766018606144,0.1088298,2839.4,2838.3,0.03523235]
[1766018606342,0.0771,2839.3,2838.7,2.6812]
[1766018608430,0.0771,2839.3,2838.3,2.6812]
[1766018608616,0.46438023,2839.3,2838.4,3.04076218]
[1766018608824,0.0771,2839.2,2838.4,3.04076218]
[1766018609136,0.0771,2839.2,2838.4,3.39886218]
[1766018609539,0.0771,2839.2,2838.4,2.6812]
[1766018614954,0.0771,2839.2,2838.5,0.3581]
[1766018615252,0.0771,2839.2,2838.5,2.6812]
[1766018617383,0.0771,2839.2,2838.5,2.3231]
[1766018617679,0.0771,2839.2,2838.7,2.6812]
[1766018618034,0.0771,2839.2,2838.7,2.3231]
[1766018618235,0.0771,2839.2,2838.5,2.6812]
[1766018618437,0.0771,2839.2,2838.5,3.56007806]
[1766018620238,0.0771,2839.2,2838.5,1.23697806]
[1766018620440,0.0771,2839.2,2838.6,2.3231]
[1766018621372,0.0781,2839.2,2838.6,2.3231]
[1766018623080,0.0781,2839.2,2838.5,1.23697806]
[1766018623248,0.0781,2839.2,2838.1,2.7581]
[1766018623249,1.02595982,2839.2,2838.1,2.7581]
[1766018623450,0.0771,2839.0,2838.1,2.4023]
[1766018623754,0.0771,2838.9,2838.1,2.4023]
[1766018629065,0.0771,2838.9,2838.0,0.3578]
[1766018629578,0.46438023,2838.9,2838.0,0.002]
[1766018629778,0.0771,2838.7,2838.0,0.002]
[1766018631371,0.59320862,2838.9,2838.0,0.002]
[1766018631576,0.0771,2838.8,2838.1,2.4023]
[1766018632807,0.0771,2838.8,2838.0,0.3578]
[1766018634886,0.0771,2838.8,2838.0,0.002]
[1766018635192,0.0771,2838.7,2838.0,0.002]
[1766018637158,0.0771,2838.7,2838.0,3.03651]
[1766018637364,0.0771,2838.7,2838.1,2.7581]
[1766018638076,0.0771,2839.0,2838.3,2.4023]
[1766018638393,0.001,2839.2,2838.6,2.7581]
[1766018638394,0.0781,2839.2,2838.6,2.7581]
[1766018640888,0.0781,2839.2,2838.6,2.4023]
[1766018641058,0.0781,2839.2,2838.4,2.7581]
[1766018641791,0.0771,2839.1,2838.4,2.7581]
[1766018642092,0.0771,2839.0,2838.1,2.7581]
[1766018642291,0.0771,2839.0,2838.2,2.67831]
[1766018642898,0.0771,2839.0,2838.2,3.03411]
[1766018643469,0.0771,2839.0,2838.2,0.27601]
[1766018647404,0.0781,2839.0,2838.2,0.27601]
[1766018650207,0.54248023,2839.0,2838.1,2.7581]
[1766018650402,0.0771,2838.9,2838.1,2.7581]
[1766018652007,0.0771,2838.9,2838.2,2.7693]
[1766018657505,0.0771,2838.9,2838.3,0.3698]
[1766018657678,0.0771,2838.9,2838.3,2.7693]
[1766018660512,0.0771,2838.9,2838.1,0.002]
[1766018660513,0.001,2839.0,2838.4,0.3698]
[1766018660714,0.001,2839.0,2838.4,2.7693]
[1766018661045,0.0781,2839.0,2838.4,2.7693]
[1766018667415,0.0751,2838.8,2838.0,0.002]
[1766018667620,0.86988423,2838.9,2838.0,0.002]
[1766018667621,0.0751,2838.6,2838.0,0.002]
[1766018667816,0.49094429,2838.8,2838.0,2.7713]
[1766018668018,0.0751,2838.7,2838.1,2.7693]
[1766018672708,1.02595982,2839.0,2838.1,2.7693]
[1766018673024,1.02595982,2839.0,2838.3,2.7693]
[1766018673025,0.0751,2838.9,2838.3,2.7693]
[1766018675537,0.0751,2838.9,2838.1,2.7693]
[1766018676306,0.0751,2838.8,2838.1,2.7693]
[1766018678524,0.0751,2838.8,2838.2,2.7693]
[1766018678904,0.0751,2838.8,2838.2,2.3995]
[1766018679307,0.0751,2838.8,2838.2,2.7693]
[1766018680645,0.0751,2838.8,2838.0,0.002]
[1766018681241,0.0751,2838.8,2838.0,2.3035]
[1766018681448,0.0751,2838.8,2838.1,0.002]
[1766018683573,0.0751,2838.8,2838.1,2.3035]
[1766018684525,0.0751,2838.8,2838.1,0.002]
[1766018684852,0.0751,2838.8,2838.1,2.6652]
[1766018685453,0.50876962,2838.9,2838.2,0.3617]
[1766018685654,0.50876962,2838.9,2838.4,0.3617]
[1766018685864,0.58386962,2838.9,2838.5,2.3015]
[1766018686022,0.0751,2838.8,2838.1,0.002]
[1766018686223,0.0751,2838.8,2838.1,2.3035]
[1766018686434,0.50876962,2838.9,2838.2,0.3617]
[1766018686629,0.0751,2838.8,2838.3,2.3015]
[1766018686952,0.0751,2838.8,2838.1,2.3035]
[1766018687655,0.0751,2838.8,2838.1,2.6652]
[1766018688452,0.0751,2838.8,2838.1,2.3035]
[1766018688656,0.0751,2838.8,2838.2,2.6632]
[1766018690057,0.0751,2838.8,2838.2,2.3015]
[1766018692963,0.0751,2838.8,2838.1,0.3637]
[1766018693125,0.53948023,2838.8,2838.1,0.002]
[1766018693330,0.0751,2838.6,2838.1,0.002]
[1766018693550,0.0751,2838.6,2838.1,2.6652]
[1766018696136,0.001,2838.9,2838.1,2.3035]
[1766018696462,0.34320862,2839.0,2838.3,2.6632]
[1766018696657,0.45491369,2839.0,2838.3,2.6632]
[1766018697964,0.45491369,2839.0,2838.1,0.002]
[1766018698145,0.45491369,2839.0,2838.1,2.6652]
[1766018698582,0.001,2838.8,2838.1,2.6652]
[1766018698756,0.001,2838.8,2838.2,0.26672]
[1766018699266,0.001,2838.8,2838.4,2.6632]
[1766018702067,0.001,2838.8,2838.5,2.6632]
[1766018703168,0.001,2838.8,2838.5,2.3015]
[1766018703372,0.001,2838.8,2838.4,2.3015]
[1766018704166,0.001,2838.8,2838.2,0.26672]
[1766018704472,0.46438023,2838.7,2838.1,0.002]
[1766018704658,1.01155149,2838.8,2838.1,0.002]
[1766018707892,0.001,2839.2,2838.7,6.10703093]
[1766018708046,0.001,2839.2,2839.0,2.6632]
[1766018710496,0.001,2839.2,2839.1,0.367]
[1766018710670,0.001,2839.2,2839.1,2.6]
[1766018714994,0.001,2839.2,2839.1,2.233]
[1766018715592,0.001,2839.3,2839.2,2.5228]
[1766018715794,0.001,2839.9,2839.2,2.5228]
[1766018717985,0.001,2839.9,2838.9,2.5228]
[1766018718192,0.001,2839.9,2839.0,2.5228]
[1766018719009,0.001,2839.9,2838.7,6.10703093]
[1766018719010,6.10703093,2839.3,2838.1,0.002]
[1766018719317,0.357,2839.0,2838.1,0.002]
[1766018719615,0.357,2838.8,2838.1,0.002]
[1766018720203,0.357,2838.8,2838.1,2.1678]
[1766018720509,0.357,2838.8,2838.2,2.38278]
[1766018720907,0.357,2838.8,2838.2,2.73978]
[1766018723616,0.357,2838.8,2838.2,2.38278]
[1766018725006,0.357,2838.8,2838.2,0.57398]
[1766018725195,0.357,2838.8,2838.3,2.5228]
[1766018727318,0.358,2838.8,2838.3,2.5228]
[1766018728015,0.001,2838.8,2838.5,2.1658]
[1766018729319,0.358,2838.8,2838.4,2.5228]
[1766018730638,0.001,2838.8,2838.7,0.357]
[1766018730806,0.405504,2839.5,2838.7,2.5228]
[1766018730807,0.357,2839.5,2838.7,2.5228]
[1766018731002,0.357,2839.5,2838.8,2.1658]
[1766018732990,0.357,2839.5,2838.9,2.5228]
[1766018734527,0.358,2839.5,2838.9,2.5228]
[1766018735034,0.358,2839.5,2838.7,2.41808]
[1766018735202,0.357,2839.4,2838.7,2.41808]
[1766018735400,0.357,2839.4,2838.7,0.25228]
[1766018735610,0.357,2839.4,2838.4,2.5228]
[1766018735923,0.357,2839.4,2838.5,2.5228]
[1766018736426,0.357,2839.3,2838.3,2.5228]
[1766018736810,0.357,2839.3,2838.5,0.357]
[1766018736993,0.357,2839.3,2838.6,2.5228]
[1766018737327,0.357,2839.3,2838.6,2.77508]
[1766018740609,6.10750985,2839.5,2838.8,0.357]
[1766018740610,0.358,2839.5,2838.8,0.357]
[1766018741204,0.358,2839.5,2838.7,2.1658]
[1766018742835,0.001,2839.3,2838.7,2.1658]
[1766018743016,0.358,2839.3,2838.7,2.441808]
[1766018745236,0.358,2839.3,2838.7,0.276008]
[1766018745438,0.358,2839.3,2838.6,0.342]
[1766018746841,0.358,2839.3,2838.4,0.342]
[1766018747136,0.358,2839.3,2838.1,0.002]
[1766018747137,0.357,2839.1,2838.1,0.002]
[1766018747335,0.8658512,2839.1,2838.1,0.002]
[1766018747536,0.357,2839.0,2838.1,0.002]
[1766018749113,0.357,2839.0,2838.1,2.54]
[1766018749318,0.357,2839.0,2838.2,0.342]
[1766018749512,0.357,2839.0,2838.2,2.538]
[1766018757658,0.357,2839.0,2838.2,2.196]
[1766018757830,0.357,2839.0,2838.1,0.002]
[1766018758346,0.357,2838.9,2838.1,0.002]
[1766018758548,0.357,2838.8,2838.1,0.002]
[1766018760459,0.357,2838.8,2838.1,2.54]
[1766018761069,0.357,2838.8,2838.2,0.342]
[1766018761234,0.405504,2838.7,2838.3,2.538]
[1766018761435,0.3897298,2839.0,2838.3,2.538]
[1766018761663,0.762504,2838.9,2838.4,2.57323111]
[1766018761838,0.762504,2838.9,2838.4,2.538]
[1766018762032,0.405504,2838.9,2838.4,2.538]
[1766018762356,0.357,2838.8,2838.4,2.538]
[1766018762936,0.357,2838.8,2838.4,2.196]
[1766018763154,0.405504,2838.9,2838.4,2.196]
[1766018763355,0.358,2839.0,2838.6,2.196]
[1766018763566,0.358,2839.0,2838.6,2.538]
[1766018763750,0.358,2839.0,2838.4,0.342]
[1766018763946,0.358,2839.0,2838.4,2.538]
[1766018764147,0.87088423,2839.3,2838.9,2.196]
[1766018764148,0.001,2839.3,2838.9,2.196]
[1766018764362,0.001,2839.3,2839.1,2.538]
[1766018764564,0.001,2839.4,2839.2,2.538]
[1766018765461,0.357,2839.3,2838.5,2.538]
[1766018765833,0.357,2839.3,2838.4,0.2538]
[1766018766033,0.357,2839.3,2838.3,2.538]
[1766018767560,0.357,2839.2,2838.3,2.196]
[1766018767861,0.357,2839.1,2838.4,2.538]
[1766018768164,0.85870029,2839.1,2838.4,2.538]
[1766018768458,1.36755149,2839.1,2838.4,2.538]
[1766018768641,1.36755149,2839.1,2838.5,0.2538]
[1766018768844,0.357,2839.1,2838.5,0.5958]
[1766018769041,0.357,2839.1,2838.6,2.538]
[1766018769437,0.357,2839.1,2838.7,0.342]
[1766018769641,0.357,2839.1,2838.7,2.538]
[1766018772265,0.3506,2839.3,2838.7,2.538]
[1766018772433,0.001,2839.3,2838.8,0.3533]
[1766018772639,0.001,2839.5,2838.9,2.1433]
[1766018772838,0.001,2839.5,2839.3,2.4966]
[1766018773642,0.001,2839.5,2839.4,0.3533]
[1766018773848,0.001,2839.5,2839.4,2.1433]
[1766018774050,0.001,2839.5,2839.2,0.3533]
[1766018774365,0.001,2839.5,2839.2,2.1433]
[1766018774565,0.3496,2839.4,2838.6,2.4966]
[1766018774738,0.3496,2839.4,2838.6,2.79269802]
[1766018775840,0.3496,2839.4,2838.7,2.1433]
[1766018776036,0.3496,2839.4,2838.7,2.4966]
[1766018776239,0.3496,2839.4,2838.7,2.1433]
[1766018776436,0.001,2839.5,2838.9,0.3533]
[1766018776642,0.405504,2839.4,2838.5,0.3533]
[1766018776843,0.001,2839.5,2839.0,2.1433]
[1766018777064,0.001,2839.5,2839.2,2.1433]
[1766018778058,0.001,2839.5,2839.1,2.1433]
[1766018778258,0.001,2839.5,2839.3,2.1433]
[1766018778465,0.001,2839.5,2839.3,2.4966]
[1766018778769,0.0317298,2839.8,2839.6,0.3533]
[1766018778955,0.0317298,2839.8,2839.6,2.4966]
[1766018779273,2.98e-05,2839.8,2839.7,0.3533]
[1766018779592,0.001,2840.5,2839.5,6.10495292]
[1766018779756,0.001,2840.5,2840.0,2.4966]
[1766018779956,0.3506,2840.5,2839.7,0.3533]
[1766018780146,0.3506,2840.5,2839.7,2.4966]
[1766018780650,0.001,2840.5,2839.9,2.4966]
[1766018782160,0.001,2840.5,2840.1,2.1433]
[1766018782555,0.001,2840.5,2839.6,0.3533]
[1766018782776,0.001,2840.5,2839.9,2.4966]
[1766018784242,0.3496,2840.4,2839.5,0.3533]
[1766018784447,0.3496,2840.4,2839.8,2.1433]
[1766018784646,0.001,2840.5,2839.9,2.1433]
[1766018784864,0.001,2840.5,2839.3,2.1433]
[1766018785075,0.3506,2840.5,2839.5,2.1433]
[1766018785273,0.001,2840.5,2839.9,2.1433]
[1766018785474,0.001,2840.5,2840.2,2.4966]
[1766018785667,0.001,2840.5,2840.4,2.1433]
[1766018786063,0.001,2840.5,2840.3,2.4966]
[1766018786471,0.001,2840.5,2840.3,2.1433]
[1766018786663,0.001,2840.5,2840.1,2.1433]
[1766018787260,0.3506,2840.5,2839.9,2.4966]
[1766018787459,0.3506,2840.5,2839.9,2.74626]
[1766018787954,0.3506,2840.5,2840.0,2.4966]
[1766018788661,0.3506,2840.5,2840.0,2.1433]
[1766018789072,0.3496,2840.3,2839.2,0.3533]
[1766018789373,0.3496,2840.3,2839.6,2.1433]
[1766018789548,0.3496,2840.3,2839.7,2.4966]
[1766018789890,0.001,2840.5,2839.7,2.1433]
[1766018790095,0.3506,2840.5,2839.8,2.1433]
[1766018790376,0.3506,2840.5,2840.0,2.4966]
[1766018790763,0.3506,2840.5,2840.0,2.1433]
[1766018791174,0.3506,2840.5,2839.4,0.3533]
[1766018791350,0.405504,2840.3,2838.8,2.1433]
[1766018791555,0.3496,2840.1,2839.2,2.1433]
[1766018791754,0.3496,2840.1,2839.1,0.3533]
[1766018791981,0.3496,2840.1,2839.0,2.1433]
[1766018792277,0.3496,2839.8,2839.0,0.24966]
[1766018793769,0.3496,2839.8,2838.9,2.1433]
[1766018794176,0.3496,2839.8,2839.0,0.3533]
[1766018794483,0.3496,2839.8,2839.2,2.4966]
[1766018796155,0.3496,2839.8,2839.2,2.1433]
[1766018796353,0.3496,2839.8,2839.0,2.4966]
[1766018796679,0.3496,2839.8,2839.1,0.24966]
[1766018797176,0.3496,2839.8,2839.1,2.39296]
[1766018797480,0.3496,2839.8,2839.2,2.1433]
[1766018801248,0.3496,2839.8,2839.1,0.60496]
[1766018801472,0.3496,2839.8,2839.1,0.002]
[1766018803882,0.405504,2839.5,2838.7,0.002]
[1766018804250,0.359,2839.5,2838.7,0.002]
[1766018805489,0.359,2839.4,2838.7,0.002]
[1766018805651,0.359,2839.4,2838.7,0.25702]
[1766018809168,0.359,2839.4,2838.7,2.44622]
[1766018809985,0.359,2839.4,2838.7,2.80522]
[1766018810161,0.359,2839.4,2838.8,2.1892]
[1766018810357,0.359,2839.4,2838.8,2.5482]
[1766018810664,0.359,2839.6,2839.0,2.5482]
[1766018810867,0.359,2839.6,2839.0,2.1892]
[1766018811068,0.359,2839.6,2839.2,2.5482]
[1766018811464,0.359,2839.6,2839.2,2.1892]
[1766018812484,0.3907298,2839.8,2839.2,2.1892]
[1766018812687,0.3907298,2839.8,2839.2,2.5482]
[1766018814888,0.359,2840.1,2839.5,0.359]
[1766018815090,0.0317298,2840.2,2839.6,2.5482]
[1766018815987,0.359,2840.3,2839.8,2.1892]
[1766018816181,0.405504,2840.3,2839.9,2.1892]
[1766018816363,0.764504,2840.3,2839.9,2.1892]
[1766018816989,0.405504,2840.3,2839.7,2.5482]
[1766018817189,0.359,2840.2,2839.7,2.5482]